fUST/lending_fUST_20260127
["ID","MTS","AMOUNT","RATE_DAILY","PERIOD"]
[403744989,1769521839510,-500.0,0.00012794,2]
[403744990,1769521839519,-586.50377606,0.00012794,2]
[403744991,1769521839529,-500.0,0.00012794,2]
[403744992,1769521839540,-150.0,0.00012794,2]
[403744994,1769521839549,-150.0,0.00012794,2]
[403744995,1769521839559,-500.0,0.00012794,2]
[403744996,1769521839568,-150.0,0.00012794,2]
[403744997,1769521839578,-150.0,0.00012794,2]
[403744998,1769521839588,-500.0,0.00012794,2]
[403744999,1769521839597,-500.0,0.00012794,2]
[403745001,1769521839606,-500.0,0.00012794,2]
[403745002,1769521839617,-150.0,0.00012794,2]
[403745003,1769521839627,-206.35919753,0.00012794,2]
[403745004,1769521839639,-500.0,0.00012794,2]
[403745005,1769521839651,-500.0,0.00012794,2]
[403745007,1769521839660,-150.0,0.00012795,2]
[403745008,1769521839670,-150.45045336,0.00012796,2]
[403745009,1769521839679,-2165.47855451,0.00012887,2]
[403745010,1769521839692,-500.0,0.00012902,2]
[403745011,1769521839701,-500.0,0.00012931,2]
[403745012,1769521839710,-500.0,0.00012931,2]
[403745013,1769521839719,-372.70372137,0.00012931,2]
[403745015,1769521839730,-200.0,0.00012931,2]
[403745016,1769521839739,-150.0,0.00012931,2]
[403745017,1769521839748,-552.97588223,0.00012931,2]
[403745018,1769521839758,-200.0,0.00012931,2]
[403745019,1769521839768,-150.0,0.00012931,2]
[403745020,1769521839780,-500.0,0.00012931,2]
[403745022,1769521839790,-500.0,0.00012931,2]
[403745023,1769521839800,-500.0,0.00012931,2]
[403745024,1769521839809,-150.0,0.00012931,2]
[403745025,1769521839819,-500.0,0.00012931,2]
[403745026,1769521839829,-500.0,0.00012931,2]
[403745027,1769521839838,-150.0,0.00012932,2]
[403745029,1769521839847,-287.65353365,0.00012971,2]
[403745030,1769521839857,-600.0,0.00013051,2]
[403745031,1769521839868,-500.0,0.00013068,2]
[403745032,1769521839877,-500.0,0.00013068,2]
[403745033,1769521839887,-250.79251461,0.00013068,2]
[403745034,1769521839896,-550.81623099,0.00013068,2]
[403745036,1769521839905,-473.92590858,0.00013068,2]
[403745037,1769521839915,-500.0,0.00013068,2]
[403745038,1769521839924,-276.92310228,0.00013068,2]
[403745039,1769521839933,-500.0,0.00013068,2]
[403745040,1769521839941,-500.0,0.00013068,2]
[403745041,1769521839951,-202.55847366,0.00013069,2]
[403745042,1769521839960,-487.0,0.00013071,2]
[403745044,1769521839970,-487.0,0.00013071,2]
[403745045,1769521839980,-487.0,0.00013071,2]
[403745046,1769521839989,-487.0,0.00013071,2]
[403745047,1769521839998,-487.0,0.00013071,2]
[403745048,1769521840007,-487.0,0.00013071,2]
[403745049,1769521840017,-487.0,0.00013071,2]
[403745051,1769521840026,-954.64,0.00013071,2]
[403745052,1769521840037,-151.0,0.000131,2]
[403745053,1769521840046,-151.0,0.000131,2]
[403745054,1769521840056,-151.0,0.000131,2]
[403745055,1769521840065,-151.0,0.000131,2]
[403745056,1769521840074,-151.0,0.000131,2]
[403745057,1769521840084,-151.0,0.000131,2]
[403745059,1769521840093,-151.0,0.000131,2]
[403745060,1769521840105,-151.0,0.000131,2]
[403745061,1769521840115,-151.0,0.000131,2]
[403745062,1769521840125,-151.0,0.000131,2]
[403745063,1769521840134,-151.0,0.000131,2]
[403745064,1769521840144,-151.0,0.000131,2]
[403745066,1769521840153,-151.0,0.000131,2]
[403745067,1769521840163,-151.0,0.000131,2]
[403745068,1769521840172,-151.0,0.000131,2]
[403745069,1769521840181,-151.0,0.000131,2]
[403745070,1769521840191,-151.0,0.000131,2]
[403745071,1769521840201,-151.0,0.000131,2]
[403745072,1769521840210,-151.0,0.000131,2]
[403745074,1769521840219,-151.0,0.000131,2]
[403745075,1769521840228,-151.0,0.000131,2]
[403745076,1769521840238,-151.0,0.000131,2]
[403745077,1769521840248,-151.0,0.000131,2]
[403745078,1769521840258,-151.0,0.000131,2]
[403745079,1769521840268,-151.0,0.000131,2]
[403745081,1769521840278,-151.0,0.000131,2]
[403745083,1769521840288,-151.0,0.000131,2]
[403745084,1769521840297,-500.0,0.00013176,2]
[403745085,1769521840306,-500.0,0.00013205,2]
[403745086,1769521840315,-500.0,0.00013205,2]
[403745087,1769521840324,-500.0,0.00013205,2]
[403745088,1769521840333,-500.0,0.00013205,2]
[403745090,1769521840342,-500.0,0.00013205,2]
[403745091,1769521840352,-500.0,0.00013273,2]
[403745092,1769521840361,-500.0,0.00013273,2]
[403745093,1769521840370,-500.0,0.00013273,2]
[403745094,1769521840380,-500.0,0.00013273,2]
[403745095,1769521840389,-500.0,0.00013273,2]
[403745098,1769521840399,-500.23170738,0.00013273,2]
[403745099,1769521840408,-500.0,0.00013273,2]
[403745100,1769521840417,-500.0,0.00013273,2]
[403745101,1769521840426,-500.0,0.00013273,2]
[403745102,1769521840436,-500.0,0.00013273,2]
[403745103,1769521840445,-500.0,0.00013273,2]
[403745104,1769521840454,-500.0,0.00013273,2]
[403745106,1769521840463,-500.0,0.00013273,2]
[403745107,1769521840473,-500.0,0.00013273,2]
[403745108,1769521840487,-386.92022535,0.00013273,2]
[403745109,1769521840498,-264.83719499,0.00013273,2]
[403745110,1769521840508,-500.0,0.00013273,2]
[403745111,1769521840519,-284.04326702,0.00013273,2]
[403745113,1769521840528,-500.0,0.00013273,2]
[403745114,1769521840539,-500.0,0.00013273,2]
[403745115,1769521840549,-500.0,0.00013273,2]
[403745116,1769521840558,-500.0,0.00013273,2]
[403745117,1769521840569,-500.0,0.00013273,2]
[403745118,1769521840578,-500.0,0.00013273,2]
[403745120,1769521840587,-500.0,0.00013273,2]
[403745121,1769521840598,-500.0,0.00013273,2]
[403745122,1769521840608,-500.0,0.00013273,2]
[403745123,1769521840617,-500.0,0.00013273,2]
[403745124,1769521840626,-500.0,0.00013273,2]
[403745125,1769521840636,-500.0,0.00013273,2]
[403745127,1769521840646,-500.0,0.00013273,2]
[403745128,1769521840656,-261.99881114,0.00013273,2]
[403745129,1769521840665,-302.08825533,0.00013273,2]
[403745130,1769521840675,-500.60565032,0.00013273,2]
[403745131,1769521840686,-500.0,0.00013273,2]
[403745132,1769521840697,-500.0,0.00013273,2]
[403745133,1769521840707,-500.0,0.00013273,2]
[403745135,1769521840716,-500.0,0.00013273,2]
[403745136,1769521840727,-500.0,0.00013273,2]
[403745137,1769521840736,-500.0,0.00013273,2]
[403745138,1769521840746,-500.0,0.00013273,2]
[403745139,1769521840756,-500.0,0.00013273,2]
[403745140,1769521840766,-500.0,0.00013273,2]
[403745142,1769521840775,-500.0,0.00013273,2]
[403745143,1769521840784,-500.0,0.00013273,2]
[403745144,1769521840794,-500.0,0.00013273,2]
[403745145,1769521840804,-500.0,0.00013273,2]
[403745146,1769521840813,-500.0,0.00013273,2]
[403745147,1769521840823,-500.0,0.00013273,2]
[403745149,1769521840833,-500.0,0.00013273,2]
[403745150,1769521840842,-500.0,0.00013273,2]
[403745151,1769521840852,-500.0,0.00013342,2]
[403745152,1769521840862,-500.0,0.00013342,2]
[403745153,1769521840871,-500.0,0.00013342,2]
[403745154,1769521840882,-500.0,0.00013342,2]
[403745156,1769521840892,-500.0,0.00013342,2]
[403745157,1769521840903,-500.0,0.0001345,2]
[403745158,1769521840912,-500.0,0.00013479,2]
[403745159,1769521840923,-500.0,0.00013479,2]
[403745160,1769521840934,-500.0,0.00013479,2]
[403745161,1769521840945,-500.0,0.00013479,2]
[403745163,1769521840955,-500.0,0.00013479,2]
[403745164,1769521840964,-500.0,0.00013616,2]
[403745165,1769521840973,-500.0,0.00013616,2]
[403745166,1769521840983,-261.32015771,0.00013616,2]
[403745167,1769521840992,-500.0,0.00013616,2]
[403745168,1769521841001,-500.0,0.00013616,2]
[403745169,1769521841013,-201.23226476,0.00013673,2]
[403745171,1769521841022,-300.0,0.00013673,2]
[403745172,1769521841032,-262.95349884,0.00013674,2]
[403745173,1769521841043,-713.56,0.00013698,2]
[403745174,1769521841052,-713.56,0.00013698,2]
[403745175,1769521841061,-713.56,0.00013698,2]
[403745176,1769521841071,-713.56,0.00013698,2]
[403745178,1769521841081,-713.56,0.00013698,2]
[403745179,1769521841090,-713.56,0.00013698,2]
[403745180,1769521841100,-713.56,0.00013698,2]
[403745181,1769521841109,-713.56,0.00013698,2]
[403745182,1769521841118,-713.56,0.00013698,2]
[403745183,1769521841127,-713.56,0.00013698,2]
[403745184,1769521841136,-713.56,0.00013698,2]
[403745186,1769521841145,-713.56,0.00013698,2]
[403745187,1769521841155,-713.56,0.00013698,2]
[403745188,1769521841164,-713.56,0.00013698,2]
[403745189,1769521841173,-713.56,0.00013698,2]
[403745190,1769521841182,-713.56,0.00013698,2]
[403745191,1769521841191,-713.56,0.00013698,2]
[403745193,1769521841201,-713.56,0.00013698,2]
[403745194,1769521841210,-713.56,0.00013698,2]
[403745195,1769521841218,-713.56,0.00013698,2]
[403745196,1769521841227,-713.56,0.00013698,2]
[403745197,1769521841235,-713.56,0.00013698,2]
[403745198,1769521841245,-713.56,0.00013698,2]
[403745199,1769521841254,-713.65895827,0.00013698,2]
[403745201,1769521841263,-500.0,0.00013698,2]
[403745202,1769521841272,-694.17,0.00013698,2]
[403745203,1769521841281,-694.17,0.00013698,2]
[403745204,1769521841291,-694.17,0.00013698,2]
[403745205,1769521841300,-694.17,0.00013698,2]
[403745206,1769521841309,-694.17,0.00013698,2]
[403745208,1769521841319,-694.17,0.00013698,2]
[403745209,1769521841328,-694.17,0.00013698,2]
[403745210,1769521841337,-694.17,0.00013698,2]
[403745211,1769521841346,-694.17,0.00013698,2]
[403745212,1769521841355,-694.17,0.00013698,2]
[403745213,1769521841364,-694.17,0.00013698,2]
[403745214,1769521841374,-694.17,0.00013698,2]
[403745216,1769521841382,-694.17,0.00013698,2]
[403745217,1769521841392,-694.17,0.00013698,2]
[403745218,1769521841400,-694.17,0.00013698,2]
[403745219,1769521841410,-694.17,0.00013698,2]
[403745220,1769521841419,-694.17,0.00013698,2]
[403745221,1769521841429,-694.17,0.00013698,2]
[403745225,1769521841548,-694.17,0.00013698,2]
[403745226,1769521841574,-694.17,0.00013698,2]
[403745227,1769521841583,-694.17,0.00013698,2]
[403745228,1769521841592,-694.17,0.00013698,2]
[403745229,1769521841601,-694.17,0.00013698,2]
[403745230,1769521841611,-694.27671188,0.00013698,2]
[403745231,1769521841620,-500.0,0.00013698,2]
[403745233,1769521841629,-500.0,0.00013698,2]
[403745234,1769521841638,-1000.0,0.00013698,2]
[403745235,1769521841647,-1000.0,0.00013698,2]
[403745236,1769521841656,-1000.0,0.00013698,2]
[403745237,1769521841665,-1000.0,0.00013698,2]
[403745238,1769521841675,-1000.0,0.00013698,2]
[403745240,1769521841687,-941.13251238,0.00013698,2]
[403745241,1769521841697,-186.52448351,0.00013698,2]
[403745242,1769521841706,-813.08,0.00013698,2]
[403745243,1769521841715,-813.08,0.00013698,2]
[403745244,1769521841724,-813.08,0.00013698,2]
[403745245,1769521841736,-813.08,0.00013698,2]
[403745246,1769521841746,-813.08,0.00013698,2]
[403745248,1769521841757,-813.08,0.00013698,2]
[403745249,1769521841766,-813.08,0.00013698,2]
[403745250,1769521841775,-813.08,0.00013698,2]
[403745251,1769521841785,-813.08,0.00013698,2]
[403745252,1769521841794,-813.08,0.00013698,2]
[403745253,1769521841803,-813.08,0.00013698,2]
[403745254,1769521841813,-813.08,0.00013698,2]
[403745256,1769521841822,-813.08,0.00013698,2]
[403745257,1769521841831,-813.08,0.00013698,2]
[403745258,1769521841840,-813.08,0.00013698,2]
[403745259,1769521841849,-813.08,0.00013698,2]
[403745260,1769521841858,-813.08,0.00013698,2]
[403745261,1769521841867,-813.08,0.00013698,2]
[403745262,1769521841876,-813.08,0.00013698,2]
[403745264,1769521841885,-813.08,0.00013698,2]
[403745265,1769521841895,-813.08,0.00013698,2]
[403745266,1769521841904,-813.08,0.00013698,2]
[403745267,1769521841913,-813.08,0.00013698,2]
[403745268,1769521841926,-813.08418364,0.00013698,2]
[403745269,1769521841935,-507.56,0.00013698,2]
[403745271,1769521841945,-507.56,0.00013698,2]
[403745272,1769521841955,-507.56,0.00013698,2]
[403745273,1769521841965,-507.56,0.00013698,2]
[403745274,1769521841974,-507.56,0.00013698,2]
[403745275,1769521841984,-507.56,0.00013698,2]
[403745276,1769521841993,-507.56,0.00013698,2]
[403745277,1769521842002,-507.56,0.00013698,2]
[403745279,1769521842012,-507.56,0.00013698,2]
[403745280,1769521842021,-507.56,0.00013698,2]
[403745281,1769521842030,-507.56,0.00013698,2]
[403745282,1769521842040,-507.56,0.00013698,2]
[403745283,1769521842049,-507.56,0.00013698,2]
[403745284,1769521842058,-507.56,0.00013698,2]
[403745285,1769521842068,-507.56,0.00013698,2]
[403745287,1769521842077,-507.56,0.00013698,2]
[403745288,1769521842086,-507.56,0.00013698,2]
[403745289,1769521842095,-507.56,0.00013698,2]
[403745290,1769521842104,-507.56,0.00013698,2]
[403745291,1769521842113,-507.56,0.00013698,2]
[403745292,1769521842123,-507.56,0.00013698,2]
[403745294,1769521842133,-507.56,0.00013698,2]
[403745295,1769521842142,-507.56,0.00013698,2]
[403745296,1769521842151,-507.63,0.00013698,2]
[403745297,1769521842161,-500.0,0.00013698,2]
[403745298,1769521842171,-500.0,0.00013698,2]
[403745299,1769521842180,-500.0,0.00013698,2]
[403745300,1769521842189,-500.0,0.00013698,2]
[403745302,1769521842198,-500.0,0.00013698,2]
[403745303,1769521842207,-500.0,0.00013698,2]
[403745304,1769521842216,-500.0,0.00013698,2]
[403745305,1769521842226,-500.0,0.00013698,2]
[403745306,1769521842235,-500.0,0.00013698,2]
[403745307,1769521842244,-527.43989334,0.00013698,2]
[403745309,1769521842253,-515.45788341,0.00013698,2]
[403745310,1769521842263,-500.0,0.00013698,2]
[403745311,1769521842272,-500.0,0.00013698,2]
[403745312,1769521842280,-500.0,0.00013698,2]
[403745313,1769521842289,-500.0,0.00013698,2]
[403745314,1769521842298,-500.0,0.00013698,2]
[403745315,1769521842307,-500.0,0.00013698,2]
[403745317,1769521842316,-500.0,0.00013698,2]
[403745318,1769521842325,-1000.0,0.00013698,2]
[403745319,1769521842334,-580.78992406,0.00013698,2]
[403745320,1769521842343,-1000.0,0.00013699,2]
[403745321,1769521842352,-220.8942339,0.00013699,2]
[403745322,1769521842361,-500.6948387,0.00013699,2]
[403745323,1769521842371,-500.74038109,0.00013699,2]
[403745325,1769521842380,-507.15850376,0.00013699,2]
[403745326,1769521842388,-500.2256561,0.00013699,2]
[403745327,1769521842397,-160.20285304,0.00013699,2]
[403745328,1769521842406,-500.0,0.00013699,2]
[403745329,1769521842415,-500.0,0.00013699,2]
[403745330,1769521842424,-160.26500187,0.00013699,2]
[403745331,1769521842433,-500.0,0.00013699,2]
[403745333,1769521842442,-500.0,0.00013699,2]
[403745334,1769521842451,-194.72932748,0.00013699,2]
[403745335,1769521842460,-500.0,0.00013699,2]
[403745336,1769521842469,-299.9295039,0.00013699,2]
[403745337,1769521842478,-526.45505483,0.00013699,2]
[403745338,1769521842487,-500.56709487,0.00013699,2]
[403745340,1769521842495,-500.0,0.00013699,2]
[403745341,1769521842504,-502.14185001,0.00013699,2]
[403745342,1769521842514,-500.0,0.00013699,2]
[403745343,1769521842523,-500.0,0.00013699,2]
[403745344,1769521842531,-501.93006265,0.00013699,2]
[403745345,1769521842542,-500.24926867,0.00013699,2]
[403745346,1769521842550,-500.0,0.00013699,2]
[403745348,1769521842559,-500.0,0.00013699,2]
[403745349,1769521842568,-507.6640978,0.00013699,2]
[403745350,1769521842577,-160.98586548,0.00013699,2]
[403745351,1769521842586,-500.0,0.00013699,2]
[403745352,1769521842595,-500.0,0.00013699,2]
[403745353,1769521842605,-500.0,0.00013699,2]
[403745354,1769521842613,-160.67610577,0.00013699,2]
[403745356,1769521842623,-500.0,0.00013699,2]
[403745357,1769521842631,-500.0,0.00013699,2]
[403745358,1769521842640,-500.0,0.00013699,2]
[403745359,1769521842649,-500.0,0.00013699,2]
[403745360,1769521842659,-400.38622524,0.00013699,2]
[403745361,1769521842667,-612.89276168,0.00013699,2]
[403745363,1769521842676,-500.0,0.00013699,2]
[403745364,1769521842688,-500.0,0.00013699,2]
[403745365,1769521842696,-500.0,0.00013699,2]
[403745366,1769521842706,-500.65001385,0.00013699,2]
[403745367,1769521842714,-462.16420988,0.00013699,2]
[403745368,1769521842723,-500.0,0.00013699,2]
[403745369,1769521842733,-500.0,0.00013699,2]
[403745370,1769521842742,-302.32459409,0.00013699,2]
[403745372,1769521842751,-158.1763277,0.00013699,2]
[403745373,1769521842761,-500.0,0.00013699,2]
[403745374,1769521842770,-500.0,0.00013699,2]
[403745375,1769521842779,-158.80345848,0.00013699,2]
[403745376,1769521842790,-500.81049976,0.00013699,2]
[403745377,1769521842799,-160.25817065,0.00013699,2]
[403745378,1769521842807,-500.0,0.00013699,2]
[403745380,1769521842816,-158.03248936,0.00013699,2]
[403745381,1769521842826,-500.0,0.00013699,2]
[403745382,1769521842835,-500.0,0.00013699,2]
[403745383,1769521842844,-567.35253141,0.00013699,2]
[403745384,1769521842852,-500.51551222,0.00013699,2]
[403745385,1769521842862,-500.0,0.00013699,2]
[403745386,1769521842871,-158.38045043,0.00013699,2]
[403745388,1769521842880,-500.0,0.00013699,2]
[403745389,1769521842889,-500.0,0.00013699,2]
[403745390,1769521842898,-500.0,0.00013699,2]
[403745391,1769521842907,-500.0,0.00013699,2]
[403745392,1769521842916,-500.69178235,0.00013699,2]
[403745393,1769521842925,-500.2910062,0.00013699,2]
[403745395,1769521842934,-500.0,0.00013699,2]
[403745396,1769521842943,-500.0,0.00013699,2]
[403745397,1769521842952,-500.0,0.00013699,2]
[403745398,1769521842961,-500.0,0.00013699,2]
[403745399,1769521842970,-500.0,0.00013699,2]
[403745400,1769521842979,-301.32592677,0.00013699,2]
[403745401,1769521842988,-500.3335731,0.00013699,2]
[403745402,1769521842997,-500.33960277,0.00013699,2]
[403745403,1769521843006,-152.58064698,0.00013699,2]
[403745404,1769521843016,-173.92029318,0.00013699,2]
[403745405,1769521843025,-500.0,0.00013699,2]
[403745406,1769521843034,-308.60459309,0.00013699,2]
[403745407,1769521843044,-500.0,0.00013699,2]
[403745408,1769521843053,-536.5376944,0.00013699,2]
[403745409,1769521843062,-164.19123008,0.00013699,2]
[403745410,1769521843072,-525.37478737,0.00013699,2]
[403745411,1769521843081,-500.36944659,0.00013699,2]
[403745412,1769521843090,-526.86363123,0.00013699,2]
[403745413,1769521843099,-500.74660917,0.00013699,2]
[403745414,1769521843108,-500.0,0.00013699,2]
[403745415,1769521843117,-500.0,0.00013699,2]
[403745416,1769521843126,-500.0,0.00013699,2]
[403745417,1769521843135,-500.0,0.00013699,2]
[403745418,1769521843144,-500.0,0.00013699,2]
[403745419,1769521843154,-165.58700471,0.00013699,2]
[403745420,1769521843163,-500.0,0.00013699,2]
[403745421,1769521843172,-500.0,0.00013699,2]
[403745422,1769521843181,-500.0,0.00013699,2]
[403745423,1769521843191,-638.73037181,0.00013699,2]
[403745424,1769521843200,-158.90561139,0.00013699,2]
[403745425,1769521843209,-500.0,0.00013699,2]
[403745426,1769521843218,-500.18246026,0.00013699,2]
[403745427,1769521843227,-500.0,0.00013699,2]
[403745428,1769521843237,-158.6253408,0.00013699,2]
[403745429,1769521843246,-500.0,0.00013699,2]
[403745430,1769521843255,-500.71917519,0.00013699,2]
[403745431,1769521843264,-500.0,0.00013699,2]
[403745434,1769521843273,-500.0,0.00013699,2]
[403745436,1769521843282,-500.0,0.00013699,2]
[403745438,1769521843291,-500.0,0.00013699,2]
[403745440,1769521843300,-500.0,0.00013699,2]
[403745441,1769521843309,-500.0,0.00013699,2]
[403745442,1769521843318,-460.93831965,0.00013699,2]
[403745444,1769521843326,-500.0,0.00013724,2]
[403745445,1769521843335,-420.0,0.00013746,2]
[403745446,1769521843344,-500.0,0.00013753,2]
[403745447,1769521843353,-500.0,0.00013753,2]
[403745448,1769521843362,-500.0,0.00013753,2]
[403745449,1769521843370,-500.0,0.00013753,2]
[403745450,1769521843379,-1680.0,0.00013781,2]
[403745452,1769521843388,-701.58,0.00013806,2]
[403745453,1769521843397,-500.0,0.00013821,2]
[403745454,1769521843406,-622.96707627,0.00013821,2]
[403745455,1769521843415,-462.44559537,0.00013821,2]
[403745456,1769521843424,-1000.0,0.00013821,2]
[403745457,1769521843433,-822.85276011,0.00013821,2]
[403745458,1769521843442,-500.0,0.00013821,2]
[403745460,1769521843451,-500.0,0.00013821,2]
[403745461,1769521843460,-1000.0,0.00013821,2]
[403745462,1769521843469,-541.17102118,0.00013821,2]
[403745463,1769521843478,-1000.0,0.00013821,2]
[403745464,1769521843487,-1000.0,0.00013821,2]
[403745465,1769521843496,-1000.0,0.00013821,2]
[403745467,1769521843505,-181.63235792,0.00013821,2]
[403745468,1769521843513,-1000.0,0.00013821,2]
[403745469,1769521843522,-1000.0,0.00013821,2]
[403745470,1769521843531,-1000.0,0.00013821,2]
[403745471,1769521843542,-1000.0,0.00013821,2]
[403745472,1769521843551,-1000.0,0.00013821,2]
[403745473,1769521843559,-1000.0,0.00013821,2]
[403745475,1769521843568,-1000.0,0.00013821,2]
[403745476,1769521843577,-1000.0,0.00013821,2]
[403745477,1769521843586,-1000.0,0.00013821,2]
[403745478,1769521843594,-226.04161405,0.00013821,2]
[403745479,1769521843603,-1000.0,0.00013821,2]
[403745480,1769521843612,-1000.0,0.00013821,2]
[403745482,1769521843621,-500.0,0.00013821,2]
[403745483,1769521843630,-1000.0,0.00013821,2]
[403745484,1769521843639,-502.68815338,0.00013821,2]
[403745485,1769521843647,-1000.0,0.00013821,2]
[403745486,1769521843656,-500.0,0.00013821,2]
[403745487,1769521843665,-500.0,0.00013821,2]
[403745488,1769521843674,-500.0,0.00013821,2]
[403745490,1769521843685,-1000.0,0.00013821,2]
[403745491,1769521843695,-1000.0,0.00013821,2]
[403745492,1769521843704,-500.0,0.00013821,2]
[403745493,1769521843713,-1000.0,0.00013821,2]
[403745494,1769521843721,-1000.0,0.00013821,2]
[403745495,1769521843731,-470.82635095,0.0001389,2]
[403745496,1769521843740,-500.0,0.0001389,2]
[403745498,1769521843749,-500.0,0.0001389,2]
[403745499,1769521843759,-500.0,0.0001389,2]
[403745500,1769521843770,-2338.62,0.00013906,2]
[403745501,1769521843779,-500.0,0.00013998,2]
[403745502,1769521843787,-7156.93950253,0.00014,2]
[403745503,1769521843797,-51342.99260131,0.00014006,2]
[403745505,1769521843806,-500.0,0.00014027,2]
[403745506,1769521843814,-500.0,0.00014027,2]
[403745507,1769521843823,-500.0,0.00014027,2]
[403745508,1769521843832,-500.0,0.00014164,2]
[403745509,1769521843841,-500.0,0.00014164,2]
[403745510,1769521843851,-500.0,0.00014164,2]
[403745511,1769521843859,-600.0,0.00014221,2]
[403745513,1769521843868,-1000.0,0.00014247,2]
[403745514,1769521843877,-1000.0,0.00014247,2]
[403745515,1769521843886,-1000.0,0.00014247,2]
[403745516,1769521843895,-1000.0,0.00014247,2]
[403745517,1769521843904,-344.14797869,0.00014247,2]
[403745518,1769521843913,-1000.0,0.00014247,2]
[403745519,1769521843922,-1000.0,0.00014247,2]
[403745520,1769521843931,-1000.0,0.00014247,2]
[403745522,1769521843940,-1001.21829847,0.00014247,2]
[403745523,1769521843951,-1000.0,0.00014247,2]
[403745524,1769521843959,-348.473489,0.00014247,2]
[403745525,1769521843969,-610.42597811,0.00014247,2]
[403745526,1769521843979,-501.06198753,0.00014247,2]
[403745527,1769521843988,-158.68078088,0.00014247,2]
[403745529,1769521843997,-1000.89619199,0.00014247,2]
[403745530,1769521844006,-603.02448987,0.00014247,2]
[403745531,1769521844015,-1000.0,0.00014247,2]
[403745532,1769521844025,-1000.0,0.00014247,2]
[403745533,1769521844035,-474.23438198,0.00014247,2]
[403745534,1769521844047,-500.0,0.00014247,2]
[403745535,1769521844056,-1117.40899688,0.00014247,2]
[403745537,1769521844065,-1000.0,0.00014247,2]
[403745538,1769521844074,-1000.0,0.00014247,2]
[403745539,1769521844083,-1000.0,0.00014247,2]
[403745540,1769521844092,-1000.0,0.00014247,2]
[403745541,1769521844101,-1000.0,0.00014247,2]
[403745542,1769521844110,-1000.0,0.00014247,2]
[403745543,1769521844119,-498.54806363,0.00014247,2]
[403745545,1769521844129,-1000.0,0.00014247,2]
[403745546,1769521844138,-500.0,0.00014272,2]
[403745547,1769521844147,-500.0,0.00014301,2]
[403745548,1769521844156,-500.0,0.00014301,2]
[403745549,1769521844166,-500.0,0.00014301,2]
[403745550,1769521844175,-720.0,0.00014356,2]
[403745552,1769521844184,-651.77389591,0.00014368,2]
[403745553,1769521844193,-1000.0,0.00014368,2]
[403745554,1769521844202,-1500.0,0.00014368,2]
[403745555,1769521844211,-1500.0,0.00014368,2]
[403745556,1769521844220,-923.7392581,0.00014368,2]
[403745557,1769521844229,-1500.0,0.00014368,2]
[403745558,1769521844238,-1500.0,0.00014368,2]
[403745560,1769521844248,-1500.0,0.00014368,2]
[403745561,1769521844257,-964.54701019,0.00014368,2]
[403745564,1769521844375,-1500.0,0.00014368,2]
[403745565,1769521844385,-500.0,0.00014368,2]
[403745566,1769521844394,-1500.0,0.00014368,2]
[403745567,1769521844403,-1500.0,0.00014368,2]
[403745568,1769521844412,-1500.0,0.00014368,2]
[403745569,1769521844421,-1500.0,0.00014368,2]